[Event "Gibraltar Challengers A 2020"]
[Site "Caleta"]
[Date "2020.01.21"]
[Round "3.31"]
[White "Nergard, Ole-Kristian"]
[Black "Hari Charan Sai Kalluri"]
[Result "0-1"]
[ECO "B51"]
[WhiteElo "1667"]
[BlackElo "1836"]
[Annotator "NA RC"]
[PlyCount "90"]
[EventDate "2020.01.20"]
[EventType "swiss"]
[EventCountry "GGB"]
[SourceTitle "playchess.com"]
[Source "ChessBase"]
[SourceQuality "1"]
[TimeControl "6600+10"]

1. e4 {[%emt 0:14:35]} c5 {[%emt 0:00:00]} 2. Nf3 {[%emt 0:00:10]} d6 {[%emt 0:00:00]} 3. Bb5+ {[%emt 0:00:11]} Nd7 {[%emt 0:00:00]} 4. O-O {[%emt 0:01:03]} Ngf6 {[%emt 0:00:05]} 5. Re1 {[%emt 0:01:04]} e6 {[%emt 0:00:50]} 6. c3 {[%emt 0:00:11]} Be7 {[%emt 0:02:57]} 7. d4 {[%emt 0:00:27]} cxd4 {[%emt 0:00:07]} 8. cxd4 {[%emt 0:00:04]} a6 {[%emt 0:00:08]} 9. Ba4 {[%emt 0:01:45]} b5 {[%emt 0:01:20]} 10. Bc2 {[%emt 0:04:11]} e5 {[%emt 0:00:10]} 11. Nbd2 {[%emt 0:04:21]} Bb7 {[%emt 0:00:15]} 12. Nf1 {[%emt 0:03:40]} O-O {[%emt 0:00:09]} 13. Ng3 {[%emt 0:00:49]} g6 {[%emt 0:01:28]} 14. Bh6 {[%emt 0:03:26]} Re8 {[%emt 0:02:12]} 15. Bb3 {[%emt 0:01:51]} Ng4 {[%emt 0:04:27]} 16. Bd2 {[%emt 0:11:06]} Rc8 {[%emt 0:09:45]} (16... exd4 $11 17. Nxd4 Nge5) 17. h3 {[%emt 0:00:17]} Ngf6 {[%emt 0:00:10]} 18. a4 {[%emt 0:13:23]} exd4 {[%emt 0:04:00] [#]} 19. axb5 $1 {[%emt 0:01:17]} ({Don't play} 19. Nxd4 $6 Qb6 $11) 19... Nc5 {[%emt 0:07:56]} (19... Qb6 $16 {might work better.}) 20. bxa6 {[%emt 0:06:55]} Bxa6 {[%emt 0:02:18]} 21. Nxd4 {[%emt 0:03:27]} Qb6 {[%emt 0:00:05]} 22. Ba5 {[%emt 0:07:21]} Qb7 {[%emt 0:00:39]} 23. Bc3 {[%emt 0:03:36]} h5 {[%emt 0:03:57]} 24. Bc2 {[%emt 0:03:47]} Bc4 {[%emt 0:08:29] [#]} 25. Nf3 $2 {[%emt 0:03:32]} (25. Ndf5 $1 $18 {[%mdl 512]}) 25... Rcd8 $2 {[%emt 0:05:19]} (25... Bb3 $16 {was worth a try.}) 26. Qd2 {[%emt 0:04:10]} d5 $2 {[%emt 0:03:23]} (26... Bb3 {was called for.} 27. Bxb3 Nxb3) 27. Qh6 $2 {[%emt 0:03:44]} (27. exd5 Nxd5 28. Qh6 Nxc3 29. Bxg6 (29. bxc3 Bf8 $14) 29... fxg6 30. Qxg6+ Kf8 31. Nxh5) 27... Ne6 {[%emt 0:15:35]} 28. exd5 {[%emt 0:01:42]} Bf8 {[%emt 0:01:12]} 29. Qc1 {[%emt 0:08:01]} Nxd5 {[%emt 0:00:23]} 30. Be5 {[%emt 0:01:52]} (30. Ba4 $16) 30... Rc8 {[%emt 0:02:00]} 31. Qd2 {[%emt 0:01:16]} Red8 $1 {[%emt 0:02:50]} 32. Nd4 {[%emt 0:00:36]} Nxd4 {[%emt 0:02:58]} 33. Bxd4 {[%emt 0:00:39]} Nb4 {[%emt 0:00:24]} 34. Bxg6 {[%emt 0:00:24]} fxg6 {[%emt 0:00:06]} 35. Qf4 {[%emt 0:00:23]} Qf7 {[%emt 0:01:26]} 36. Qh4 {[%emt 0:00:22]} Rxd4 {[%emt 0:02:23]} 37. Qxd4 {[%emt 0:00:05]} Bc5 {[%emt 0:00:05]} 38. Qd2 {[%emt 0:00:10]} Nd3 {[%emt 0:00:33]} 39. Re2 {[%emt 0:00:19]} Rb8 {[%emt 0:00:41]} 40. Rb1 {[%emt 0:00:17]} Rf8 {[%emt 0:01:23]} 41. Ne4 {[%emt 0:00:05] [#]} Nf4 $1 {[%emt 0:02:53]} 42. Nxc5 $19 {[%emt 0:00:12]} (42. Ree1 $17 Qb7 43. b4) 42... Nxe2+ {[%emt 0:00:02]} 43. Kh1 {[%emt 0:00:13]} Qxf2 {[%emt 0:00:19]} 44. Nd7 {[%emt 0:00:01]} Ng3+ {[%emt 0:00:03]} 45. Kh2 {[%emt 0:00:03]} Qxd2 {[%emt 0:00:01]} 0-1

[Event "Gibraltar Challengers A 2020"]
[Site "Caleta"]
[Date "2020.01.21"]
[Round "3.32"]
[White "Rakotomaharo, Yves Andre"]
[Black "Garcia-Blazquez Perez, Manuel"]
[Result "1-0"]
[ECO "A80"]
[WhiteElo "2020"]
[BlackElo "1825"]
[Annotator "NA RC"]
[PlyCount "91"]
[EventDate "2020.01.20"]
[EventType "swiss"]
[EventCountry "GGB"]
[SourceTitle "playchess.com"]
[Source "ChessBase"]
[SourceQuality "1"]
[TimeControl "6600+10"]

1. d4 {[%emt 0:39:42]} f5 {[%emt 0:00:00]} 2. Nc3 {[%emt 0:00:29]} Nf6 {[%emt 0:00:00]} 3. Bg5 {[%emt 0:00:23]} e6 {[%emt 0:00:03]} 4. f3 {[%emt 0:01:53]} (4. e4 fxe4 5. Nxe4 Be7 6. Bxf6 Bxf6 7. Nf3 Nc6 8. c3 O-O 9. Bd3 d6 10. Qc2 h6 11. O-O g5 12. Qe2 Bd7 13. Nfd2 e5 14. d5 Ne7 15. Nxf6+ Rxf6 16. Ne4 Rf7 17. Rad1 a5 18. Bb1 {0-1 (37) Zherebukh,Y (2595)-Kamsky,G (2675) Las Vegas 2016}) 4... Be7 {[%emt 0:00:08]} 5. e4 {[%emt 0:03:42]} fxe4 {[%emt 0:01:04]} 6. fxe4 {[%emt 0:00:15] A80: Dutch Defence: Unusual White second moves} O-O {[%emt 0:04:51]} 7. Nf3 {[%emt 0:01:16]} d5 {[%emt 0:10:07]} 8. e5 $146 {[%emt 0:05:20]} ({Predecessor:} 8. Bd3 c5 9. dxc5 Nxe4 10. Bxe7 Nxc3 11. Bxd8 Nxd1 12. Rxd1 Rxd8 {½-½ (41) Von Spreckelsen,A-Beyer,H Hamburg 1963}) 8... Ne4 {[%emt 0:00:25]} 9. Bxe7 {[%emt 0:01:57]} Qxe7 {[%emt 0:06:56]} 10. Bd3 {[%emt 0:07:56]} Nxc3 {[%emt 0:04:00]} 11. bxc3 {[%emt 0:00:25]} c5 {[%emt 0:00:09]} 12. dxc5 {[%emt 0:13:06]} Qxc5 {[%emt 0:01:29]} 13. Qd2 {[%emt 0:00:53]} Nc6 {[%emt 0:03:15]} 14. Ke2 {[%emt 0:02:04]} Na5 {[%emt 0:02:43]} 15. Qe3 {[%emt 0:00:58]} b6 {[%emt 0:02:01]} 16. Nd4 {[%emt 0:04:38]} Bd7 {[%emt 0:00:19]} 17. Rhf1 {[%emt 0:02:32]} Nc4 {[%emt 0:00:24]} 18. Qh3 {[%emt 0:02:06]} g6 {[%emt 0:01:42]} 19. Qg3 {[%emt 0:03:39]} Qc7 {[%emt 0:01:31]} 20. Nf3 {[%emt 0:05:32]} Rf7 {[%emt 0:01:49]} 21. h4 {[%emt 0:03:21] [#]} Rg7 $1 {[%emt 0:06:36]} 22. Rae1 {[%emt 0:02:57]} Rf8 {[%emt 0:00:40]} 23. Kd1 {[%emt 0:00:29] [#]} (23. Nd4 $15) 23... Nb2+ $1 {[%emt 0:00:51] Discovered Attack} 24. Kd2 {[%emt 0:00:01]} Na4 {[%emt 0:02:35]} 25. Ng5 {[%emt 0:03:39]} Qxc3+ {[%emt 0:00:21]} 26. Ke2 {[%emt 0:00:03]} Rxf1 {[%emt 0:14:24]} 27. Rxf1 {[%emt 0:00:44]} Qc8 {[%emt 0:09:11]} 28. Qf4 $1 {[%emt 0:01:03]} Nc5 {[%emt 0:00:25]} 29. Nf7 {[%emt 0:00:16]} h5 {[%emt 0:04:37]} 30. Nd6 {[%emt 0:01:27]} Nxd3 {[%emt 0:00:33]} 31. cxd3 {[%emt 0:00:17]} Qc2+ {[%emt 0:00:48]} 32. Ke1 {[%emt 0:00:36]} Qxd3 {[%emt 0:02:45]} 33. Rf3 {[%emt 0:00:17]} Qb1+ {[%emt 0:00:27]} 34. Kf2 {[%emt 0:00:10]} Qxa2+ {[%emt 0:02:03]} 35. Kg3 {[%emt 0:00:07]} Qe2 {[%emt 0:00:18]} 36. Qf8+ {[%emt 0:00:11]} Kh7 {[%emt 0:00:05]} 37. Nf7 {[%emt 0:00:02]} Qe1+ {[%emt 0:01:16]} 38. Rf2 {[%emt 0:00:44]} Qe3+ {[%emt 0:11:23]} 39. Kh2 {[%emt 0:00:22]} Rg8 {[%emt 0:00:10]} 40. Ng5+ {[%emt 0:00:14]} Qxg5 {[%emt 0:01:31]} 41. Qf7+ {[%emt 0:00:17] Double Attack} Rg7 $18 {[%emt 0:00:04]} 42. hxg5 {[%emt 0:00:10]} Rxf7 {[%emt 0:00:11]} 43. Rxf7+ {[%emt 0:00:01]} Kg8 {[%emt 0:05:52]} 44. Rxd7 {[%emt 0:00:02]} Kf8 {[%emt 0:00:09]} 45. Rxa7 {[%emt 0:00:03]} b5 {[%emt 0:00:22]} 46. Kg3 {[%emt 0:00:02]} 1-0

[Event "Gibraltar Challengers A 2020"]
[Site "Caleta"]
[Date "2020.01.21"]
[Round "3.34"]
[White "Auvinen, Esa"]
[Black "Perez Ruiz, Santiago"]
[Result "0-1"]
[ECO "C68"]
[WhiteElo "1850"]
[BlackElo "1953"]
[Annotator "NA RC"]
[PlyCount "124"]
[EventDate "2020.01.20"]
[EventType "swiss"]
[EventCountry "GGB"]
[SourceTitle "playchess.com"]
[Source "ChessBase"]
[SourceQuality "1"]
[TimeControl "6600+10"]

1. e4 {[%emt 0:00:00]} e5 {[%emt 0:07:25]} 2. Nf3 {[%emt 0:01:57]} Nc6 {[%emt 0:00:09]} 3. Bb5 {[%emt 0:00:06]} a6 {[%emt 0:00:09]} 4. Bxc6 {[%emt 0:00:08]} dxc6 {[%emt 0:00:08]} 5. d4 {[%emt 0:00:05]} exd4 {[%emt 0:05:51]} 6. Qxd4 {[%emt 0:00:13]} Bg4 {[%emt 0:02:40]} 7. Bf4 {[%emt 0:06:31] C68: Ruy Lopez: Exchange Variation, sidelines} (7. Qxd8+ Rxd8 8. Bg5 f6 9. Be3 Bxf3 10. gxf3 {½-½ (10) Drasko,M (2418)-Lazic,M (2420) Brixen Bressanone 2019}) 7... Qxd4 {[%emt 0:05:03]} 8. Nxd4 {[%emt 0:00:20]} O-O-O {[%emt 0:00:13]} 9. Ne2 {[%emt 0:00:24]} Ne7 $146 {[%emt 0:01:02]} ({Predecessor:} 9... Bb4+ 10. c3 Bc5 11. f3 Be6 12. Nd2 Ne7 13. Nb3 Bb6 14. Ned4 Bc4 {½-½ (59) Gorbacz,D-Korpalska,J (1508) Sielpia 2009}) 10. f3 {[%emt 0:00:44]} Be6 {[%emt 0:00:18]} 11. Nbc3 {[%emt 0:00:47]} h5 {[%emt 0:00:29]} 12. Kf2 {[%emt 0:02:11]} Ng6 {[%emt 0:00:24]} 13. Be3 {[%emt 0:00:39]} Ne5 {[%emt 0:02:09]} 14. b3 {[%emt 0:00:27]} f6 {[%emt 0:01:52]} 15. Rhd1 {[%emt 0:01:37]} Bd6 {[%emt 0:03:55]} 16. Rd2 {[%emt 0:01:31]} g5 {[%emt 0:01:14]} 17. Rad1 {[%emt 0:00:34]} Rdg8 {[%emt 0:08:59]} (17... h4 $11 {keeps the balance.}) 18. Na4 {[%emt 0:01:05]} (18. Rxd6 $16 cxd6 19. Rxd6) 18... f5 {[%emt 0:02:17]} (18... Nd7 $11 {keeps the balance.}) 19. Bc5 {[%emt 0:01:25]} (19. Nb6+ $16 Kb8 20. Rxd6 cxd6 21. Rxd6) 19... fxe4 {[%emt 0:10:32]} 20. Bxd6 {[%emt 0:02:33]} cxd6 {[%emt 0:00:59]} 21. Rxd6 {[%emt 0:02:13]} exf3 {[%emt 0:11:15]} 22. Rxe6 {[%emt 0:02:09]} Ng4+ {[%emt 0:03:04]} (22... fxe2 $11 {keeps the balance.} 23. Re1 Re8 24. Rxe8+ Rxe8) 23. Kg3 {[%emt 0:01:49]} (23. Kxf3 $16 Rf8+ 24. Kg3) 23... fxe2 {[%emt 0:01:55]} 24. Rxe2 {[%emt 0:00:02]} Rf8 {[%emt 0:01:13]} 25. c4 {[%emt 0:05:06]} Nf2 {[%emt 0:01:59]} 26. Rxf2 {[%emt 0:03:53]} h4+ {[%emt 0:00:15]} 27. Kh3 {[%emt 0:00:45]} Rxf2 {[%emt 0:00:19]} 28. Nc3 {[%emt 0:00:45]} g4+ {[%emt 0:03:33]} 29. Kxg4 {[%emt 0:00:13]} Rg8+ {[%emt 0:00:17]} 30. Kxh4 {[%emt 0:00:44]} Rfxg2 {[%emt 0:00:29]} 31. Kh3 {[%emt 0:00:53]} Rc2 {[%emt 0:07:17]} 32. Rd3 {[%emt 0:00:50]} Rh8+ {[%emt 0:00:12]} 33. Kg3 {[%emt 0:01:04]} Rcxh2 {[%emt 0:00:16]} 34. Kf4 {[%emt 0:00:34]} Rg2 {[%emt 0:02:26]} 35. c5 {[%emt 0:11:10]} Re8 {[%emt 0:01:42]} 36. Ne4 {[%emt 0:05:14]} Rf8+ {[%emt 0:00:41]} 37. Ke5 {[%emt 0:00:44]} Rxa2 {[%emt 0:01:18]} 38. Nd6+ {[%emt 0:00:25]} Kc7 {[%emt 0:01:23]} 39. Rh3 {[%emt 0:01:29]} Re2+ {[%emt 0:00:31]} 40. Kd4 {[%emt 0:00:10]} Re7 {[%emt 0:02:32]} 41. Nc4 {[%emt 0:01:40]} Rd8+ {[%emt 0:00:47]} 42. Kc3 {[%emt 0:00:16]} Rd5 {[%emt 0:00:54]} 43. b4 {[%emt 0:01:41]} Rg7 {[%emt 0:00:24]} 44. Nb6 {[%emt 0:00:47]} Rdg5 {[%emt 0:00:32]} 45. Rh8 {[%emt 0:00:47]} Rg3+ {[%emt 0:00:35]} 46. Kb2 {[%emt 0:00:52]} Rg8 {[%emt 0:00:05]} 47. Rh7+ {[%emt 0:00:35]} R3g7 {[%emt 0:00:15]} 48. Rh6 {[%emt 0:01:09]} Rf8 {[%emt 0:00:20]} 49. Kb3 {[%emt 0:01:23]} Rf3+ {[%emt 0:00:44]} 50. Ka4 {[%emt 0:00:35]} Rg2 {[%emt 0:01:50]} 51. Rh7+ {[%emt 0:00:49]} Kd8 {[%emt 0:00:13]} 52. Rh8+ {[%emt 0:00:41]} Ke7 {[%emt 0:00:16]} 53. Nc8+ {[%emt 0:00:10]} Ke6 {[%emt 0:02:00]} 54. Ka5 {[%emt 0:00:52]} Rb2 {[%emt 0:01:49]} 55. Rh4 {[%emt 0:01:56]} Ra3+ {[%emt 0:01:49]} 56. Kb6 {[%emt 0:00:16]} a5 $19 {[%emt 0:00:10]} 57. Kxb7 {[%emt 0:07:14]} Rxb4+ {[%emt 0:00:15]} 58. Rxb4 {[%emt 0:00:06]} axb4 {[%emt 0:00:11]} 59. Nb6 {[%emt 0:00:55]} b3 {[%emt 0:01:42]} 60. Nc4 {[%emt 0:00:15]} Ra4 {[%emt 0:00:23]} 61. Nd2 {[%emt 0:00:31]} Kd5 {[%emt 0:00:15]} 62. Kc7 {[%emt 0:00:35]} Rb4 {[%emt 0:00:26]} 0-1

[Event "Gibraltar Challengers A 2020"]
[Site "Caleta"]
[Date "2020.01.21"]
[Round "3.35"]
[White "Adewole, Adeyinka"]
[Black "Niharika Ch"]
[Result "0-1"]
[ECO "E50"]
[WhiteElo "1941"]
[BlackElo "1865"]
[Annotator "NA RC"]
[PlyCount "70"]
[EventDate "2020.01.20"]
[EventType "swiss"]
[EventCountry "GGB"]
[SourceTitle "playchess.com"]
[Source "ChessBase"]
[SourceQuality "1"]
[TimeControl "6600+10"]

1. c4 {[%emt 0:09:46]} Nf6 {[%emt 0:00:00]} 2. Nc3 {[%emt 0:00:25]} e6 {[%emt 0:00:04]} 3. e3 {[%emt 0:01:07]} d5 {[%emt 0:00:15]} 4. d4 {[%emt 0:00:14]} Bb4 {[%emt 0:00:10]} 5. Nf3 {[%emt 0:00:37]} O-O {[%emt 0:00:07]} 6. Qb3 {[%emt 0:00:36] E50: Nimzo-Indian: Rubinstein: 4...0-0 5 Nf3} (6. Bd2 b6 7. cxd5 exd5 8. Bd3 Bb7 9. Ne5 Bd6 10. O-O c5 11. Rc1 Nc6 12. Ng4 Nd7 13. Nh6+ gxh6 14. Qg4+ Kh8 15. Qf5 Nf6 16. Nxd5 Nxd4 17. Qxf6+ Qxf6 18. Nxf6 {½-½ (40) Wei,Y (2725)-Karjakin,S (2754) Jerusalem 2019}) 6... Bxc3+ {[%emt 0:00:09]} 7. bxc3 {[%emt 0:00:12]} b6 {[%emt 0:00:43]} 8. cxd5 {[%emt 0:01:19]} exd5 {[%emt 0:00:16]} 9. Ne5 {[%emt 0:00:29]} Bf5 {[%emt 0:02:05]} 10. Be2 $146 {[%emt 0:00:59]} ({Predecessor:} 10. Bb5 a6 11. Qa4 Bd7 12. Bxd7 Nbxd7 13. Nc6 b5 {0-1 (27) Kuehneweg,C-Reinholz,B Recklinghausen 2005}) 10... c5 {[%emt 0:04:38]} 11. Ba3 {[%emt 0:00:28]} c4 {[%emt 0:02:13]} 12. Qb2 {[%emt 0:01:52]} Re8 {[%emt 0:00:48]} 13. g4 {[%emt 0:00:45]} Be6 {[%emt 0:16:16]} 14. Bf3 {[%emt 0:03:13]} ({Better is} 14. O-O $11) 14... Nbd7 {[%emt 0:05:37]} 15. Nc6 {[%emt 0:02:46]} Qc7 {[%emt 0:06:39]} 16. Ne7+ {[%emt 0:00:15]} Kh8 {[%emt 0:08:34]} 17. h3 {[%emt 0:02:59]} Rad8 {[%emt 0:04:14]} 18. Qc2 {[%emt 0:05:48] [#]} ({Better is} 18. g5 $1 $15) 18... Nf8 $1 {[%emt 0:09:25]} 19. Nf5 {[%emt 0:01:08] [#]} Ng6 $1 {[%emt 0:01:40]} 20. h4 $2 {[%emt 0:03:38] [#]} (20. Ng3 $17) 20... Nf4 $1 {[%emt 0:00:54]} 21. Kf1 {[%emt 0:01:20]} Nd3 {[%emt 0:04:36]} 22. Be2 {[%emt 0:01:14]} h5 {[%emt 0:10:03]} 23. Ng3 {[%emt 0:06:04]} Bxg4 {[%emt 0:07:10]} 24. Bxd3 {[%emt 0:02:14]} cxd3 {[%emt 0:00:03]} 25. Qxd3 {[%emt 0:00:16]} Bf3 {[%emt 0:00:25]} 26. Rg1 {[%emt 0:00:51]} Ne4 {[%emt 0:00:56]} 27. Bb2 {[%emt 0:07:34]} Rd6 {[%emt 0:02:12]} 28. Nxe4 {[%emt 0:02:04]} Rxe4 {[%emt 0:03:04]} ({Less strong is} 28... Bxe4 29. Qb5 $17) 29. Rg3 {[%emt 0:00:45]} Rf6 $19 {[%emt 0:00:48]} 30. Qb5 {[%emt 0:10:56]} Rxe3 {[%emt 0:03:53]} 31. Re1 {[%emt 0:02:29]} Be2+ {[%emt 0:02:34]} 32. Rxe2 {[%emt 0:00:36]} Qxg3 {[%emt 0:00:11]} 33. Qxd5 {[%emt 0:01:58]} Rxe2 {[%emt 0:01:30]} 34. Qxh5+ {[%emt 0:01:09]} Kg8 {[%emt 0:00:06]} 35. Qxe2 {[%emt 0:02:16]} Qh3+ {[%emt 0:00:07] Qd1} 0-1

[Event "Gibraltar Challengers A 2020"]
[Site "Caleta"]
[Date "2020.01.21"]
[Round "3.36"]
[White "Lafour, Jephte"]
[Black "Aura, Kristian"]
[Result "0-1"]
[ECO "A04"]
[WhiteElo "1690"]
[BlackElo "1928"]
[Annotator "NA RC"]
[PlyCount "142"]
[EventDate "2020.01.20"]
[EventType "swiss"]
[EventCountry "GGB"]
[SourceTitle "playchess.com"]
[Source "ChessBase"]
[SourceQuality "1"]
[TimeControl "6600+10"]

1. e4 {[%emt 0:28:35]} c5 {[%emt 0:00:20]} 2. Nf3 {[%emt 0:00:02]} d6 {[%emt 0:00:08]} 3. g3 {[%emt 0:01:18]} g6 {[%emt 0:00:23]} 4. Bg2 {[%emt 0:00:10]} Bg7 {[%emt 0:00:05]} 5. O-O {[%emt 0:00:19]} Nc6 {[%emt 0:00:14]} 6. d3 {[%emt 0:00:36]} e6 {[%emt 0:00:09]} 7. c3 {[%emt 0:00:51]} Nge7 {[%emt 0:02:30]} 8. Be3 {[%emt 0:02:33]} O-O {[%emt 0:03:03]} 9. Qb3 {[%emt 0:04:09] A04: Unusual lines after 1 Nf3 and King's Indian Attack} (9. Qd2 e5 10. Bh6 Bxh6 11. Qxh6 f6 12. Na3 Be6 13. Rfd1 Qb6 14. Bh3 Bf7 15. Nc4 Qc7 16. Ne3 Kh8 17. Bg4 {0-1 (27) Rathnakaran,K (2417)-Nguyen,H (2496) Al Ain 2015}) 9... Rb8 {[%emt 0:03:04]} 10. Na3 $146 {[%emt 0:02:29]} ({Predecessor:} 10. Nh4 Qc7 11. Nd2 b5 12. Rab1 Ne5 13. Qc2 c4 14. dxc4 bxc4 15. Qa4 Bd7 16. Qxa7 Qxa7 17. Bxa7 {½-½ (26) Wunderlich,K-Wokrina,A Germany 1997}) 10... b5 {[%emt 0:01:56]} 11. Qd1 {[%emt 0:01:09]} (11. Qc2 $11 {remains equal.}) 11... b4 {[%emt 0:01:16]} 12. Nb1 {[%emt 0:00:19]} Ba6 {[%emt 0:03:49]} 13. Re1 {[%emt 0:00:03]} bxc3 {[%emt 0:06:40]} 14. bxc3 {[%emt 0:00:19]} Qa5 {[%emt 0:05:01]} 15. d4 {[%emt 0:02:18]} cxd4 {[%emt 0:15:54]} 16. Nxd4 {[%emt 0:13:07]} Ne5 {[%emt 0:06:17]} 17. Nb3 {[%emt 0:03:29]} Qc7 {[%emt 0:00:02]} 18. Bf1 {[%emt 0:04:47]} Bxf1 {[%emt 0:02:21]} 19. Rxf1 {[%emt 0:01:10]} f5 {[%emt 0:06:38]} 20. Nd4 {[%emt 0:05:13]} Qd7 {[%emt 0:08:09]} 21. f3 {[%emt 0:05:13]} fxe4 {[%emt 0:06:08]} 22. fxe4 {[%emt 0:12:00]} Rxf1+ {[%emt 0:03:54]} 23. Kxf1 {[%emt 0:02:46]} Rf8+ {[%emt 0:01:05]} 24. Kg2 {[%emt 0:01:53]} d5 {[%emt 0:10:22]} 25. Qb3 {[%emt 0:06:06]} Ng4 {[%emt 0:09:40]} 26. Bg1 {[%emt 0:00:51]} Kh8 {[%emt 0:00:42]} 27. Nd2 {[%emt 0:01:19]} e5 {[%emt 0:00:42]} 28. N4f3 {[%emt 0:02:06]} dxe4 {[%emt 0:01:02]} 29. Nxe4 {[%emt 0:01:00]} Qd3 {[%emt 0:05:59]} 30. Nfg5 {[%emt 0:04:07]} h6 {[%emt 0:01:40]} 31. Nf7+ {[%emt 0:00:34]} Kh7 {[%emt 0:03:02]} 32. Ned6 {[%emt 0:00:43]} Nf5 {[%emt 0:00:59]} 33. Nxf5 {[%emt 0:01:31]} Qxf5 {[%emt 0:00:29]} 34. Nd6 {[%emt 0:00:49]} Qf3+ {[%emt 0:00:05]} 35. Kh3 {[%emt 0:00:10]} h5 {[%emt 0:00:45]} 36. Qb7 {[%emt 0:00:22]} Qxb7 {[%emt 0:00:57]} 37. Nxb7 {[%emt 0:00:02]} e4 {[%emt 0:00:03]} 38. Rc1 {[%emt 0:00:41]} Rb8 {[%emt 0:00:02]} 39. Nd6 {[%emt 0:00:11]} e3 {[%emt 0:00:04]} 40. Ne4 {[%emt 0:00:10]} Rb2 {[%emt 0:00:08]} 41. Ng5+ {[%emt 0:00:25]} Kg8 {[%emt 0:00:07]} 42. c4 {[%emt 0:00:00]} Bh6 {[%emt 0:00:11]} ({Not} 42... Rxa2 43. c5 $17) 43. Nf3 {[%emt 0:00:00]} Rxa2 {[%emt 0:00:39]} 44. Rd1 {[%emt 0:00:00]} e2 {[%emt 0:00:04]} 45. Rd8+ {[%emt 0:00:00]} Kf7 {[%emt 0:00:10]} 46. Rd7+ {[%emt 0:00:00]} Ke6 {[%emt 0:00:03]} 47. Rc7 {[%emt 0:00:00]} Be3 {[%emt 0:00:10]} 48. Bxe3 {[%emt 0:00:00]} e1=Q {[%emt 0:00:08]} 49. Nd4+ {[%emt 0:00:06] [#]} Kf6 $1 {[%emt 0:00:17]} 50. Rc6+ {[%emt 0:00:05] [#]} Kf7 $1 {[%emt 0:00:18]} 51. Rc7+ {[%emt 0:00:02] [#]} Ke8 {[%emt 0:00:05]} 52. Re7+ {[%emt 0:02:17]} Kxe7 {[%emt 0:00:11]} 53. Bg5+ {[%emt 0:00:02]} Ke8 {[%emt 0:00:05]} 54. Nf3 {[%emt 0:00:03]} Qf2 {[%emt 0:00:14]} 55. Be3 {[%emt 0:00:11]} Qxf3 {[%emt 0:00:07]} 56. Bg1 {[%emt 0:00:04]} Qg2+ {[%emt 0:00:06]} 57. Kh4 {[%emt 0:00:03]} Qxg1 {[%emt 0:00:05]} 58. c5 {[%emt 0:00:01]} Rxh2+ {[%emt 0:00:05]} 59. Kg5 {[%emt 0:00:02]} Qe3+ {[%emt 0:00:04]} 60. Kxg6 {[%emt 0:00:02]} Ne5+ {[%emt 0:00:07]} 61. Kf5 {[%emt 0:00:04]} Rf2+ {[%emt 0:00:04]} 62. Ke6 {[%emt 0:00:02]} Nd3+ {[%emt 0:00:04]} 63. Kd5 {[%emt 0:00:02]} Rf5+ {[%emt 0:00:03]} 64. Kc4 {[%emt 0:00:04]} Qe4+ {[%emt 0:00:05]} 65. Kc3 {[%emt 0:00:02]} Rxc5+ {[%emt 0:00:03]} 66. Kd2 {[%emt 0:00:02]} Qe1+ {[%emt 0:00:05]} 67. Kxd3 {[%emt 0:00:03]} Rd5+ {[%emt 0:00:03]} 68. Kc4 {[%emt 0:00:01]} Rd8 {[%emt 0:00:04]} 69. g4 {[%emt 0:00:01]} Qc1+ {[%emt 0:00:03]} 70. Kb5 {[%emt 0:00:02]} Rb8+ {[%emt 0:00:03]} 71. Ka6 {[%emt 0:00:03]} Qa3# {[%emt 0:00:03]} 0-1

[Event "Gibraltar Challengers A 2020"]
[Site "Caleta"]
[Date "2020.01.21"]
[Round "3.37"]
[White "Fischer, Robert"]
[Black "Campuzano, Franco"]
[Result "1-0"]
[ECO "C01"]
[WhiteElo "1923"]
[BlackElo "1785"]
[Annotator "NA RC"]
[PlyCount "109"]
[EventDate "2020.01.20"]
[EventType "swiss"]
[EventCountry "GGB"]
[SourceTitle "playchess.com"]
[Source "ChessBase"]
[SourceQuality "1"]
[TimeControl "6600+10"]

1. e4 {[%emt 0:00:03]} e6 {[%emt 0:01:56]} 2. d4 {[%emt 0:00:16]} d5 {[%emt 0:00:16]} 3. exd5 {[%emt 0:00:10]} exd5 {[%emt 0:00:19]} 4. Nf3 {[%emt 0:00:11]} Bg4 {[%emt 0:01:11]} 5. Bd3 {[%emt 0:02:03]} Nf6 {[%emt 0:00:52]} 6. O-O {[%emt 0:00:19]} Be7 {[%emt 0:00:15]} 7. c3 {[%emt 0:03:44]} O-O {[%emt 0:02:15] C01: French: Exchange Variation} 8. Nbd2 {[%emt 0:04:07]} b6 {[%emt 0:01:34]} (8... Nbd7 9. Qc2 Bd6 10. h3 Bh5 11. Ng5 h6 12. Ngf3 Re8 13. g4 Bg6 14. Bxg6 fxg6 15. Qxg6 Nf8 16. Qf5 Ne6 17. Re1 Nf4 18. Rxe8+ Qxe8 {½-½ (36) Solak,D (2618)-Naiditsch,A (2727) Warsaw 2013}) 9. Qc2 {[%emt 0:00:57]} c5 {[%emt 0:01:43]} 10. Ne5 {[%emt 0:02:39]} Bh5 {[%emt 0:05:40]} 11. Re1 $146 {[%emt 0:02:23]} ({Predecessor:} 11. Ndf3 cxd4 {½-½ (11) Bernardi,R-Vezzosi,P (2300) Montecatini Terme 1994}) 11... c4 {[%emt 0:01:02]} 12. Bf5 {[%emt 0:01:12]} Bg6 {[%emt 0:01:19]} 13. Bxg6 {[%emt 0:02:12]} fxg6 {[%emt 0:01:54]} 14. Ndf3 {[%emt 0:02:33]} Nfd7 {[%emt 0:03:22] [#]} (14... Bd6 $16 {is a better defense.}) 15. Nxc4 $1 {[%emt 0:04:16]} Nc6 {[%emt 0:07:55]} 16. Qb3 {[%emt 0:08:48]} Nf6 {[%emt 0:09:40]} 17. Nce5 {[%emt 0:01:44]} Rc8 {[%emt 0:01:02]} 18. Bg5 {[%emt 0:05:56]} Kh8 {[%emt 0:06:37]} 19. Qb5 {[%emt 0:06:35]} Nb8 {[%emt 0:04:03]} 20. Qe2 {[%emt 0:02:59]} Ne4 {[%emt 0:01:08]} 21. Bxe7 {[%emt 0:01:52]} Qxe7 {[%emt 0:00:16]} 22. Nd2 {[%emt 0:03:11]} Qf6 {[%emt 0:05:11]} 23. Nxe4 {[%emt 0:01:27]} dxe4 {[%emt 0:00:04]} 24. Rf1 {[%emt 0:00:57]} Rce8 {[%emt 0:05:07]} 25. Qxe4 {[%emt 0:01:40]} Re7 {[%emt 0:00:47]} 26. Rae1 {[%emt 0:02:20]} Rfe8 {[%emt 0:03:42]} 27. Qf3 {[%emt 0:01:40]} Qxf3 {[%emt 0:04:06]} 28. Nxf3 {[%emt 0:01:00]} Rxe1 {[%emt 0:00:20]} 29. Rxe1 {[%emt 0:00:09]} Rxe1+ {[%emt 0:00:18]} 30. Nxe1 {[%emt 0:00:01]} Kg8 {[%emt 0:00:26]} 31. Nf3 {[%emt 0:00:35]} Kf8 {[%emt 0:02:04]} 32. Ne5 {[%emt 0:00:58]} Ke7 {[%emt 0:00:28]} 33. Kf1 {[%emt 0:00:34]} Kd6 {[%emt 0:01:23]} 34. Ke2 {[%emt 0:00:36]} Na6 {[%emt 0:00:17]} 35. h4 {[%emt 0:00:51]} Nc7 {[%emt 0:00:34]} 36. Kd3 {[%emt 0:01:47]} Nd5 {[%emt 0:00:53]} 37. g3 {[%emt 0:01:42]} a6 {[%emt 0:01:49]} 38. Nf7+ {[%emt 0:02:18]} Ke7 {[%emt 0:00:37]} 39. Ng5 {[%emt 0:02:55]} h6 {[%emt 0:00:12]} 40. Nf3 {[%emt 0:01:05]} Ke6 {[%emt 0:01:43]} 41. a3 {[%emt 0:00:49]} b5 {[%emt 0:01:23]} 42. Ne5 {[%emt 0:01:51]} g5 {[%emt 0:01:02]} 43. hxg5 {[%emt 0:00:29]} hxg5 {[%emt 0:00:03]} 44. b3 {[%emt 0:01:16]} Kf5 {[%emt 0:01:15]} 45. c4 {[%emt 0:00:54]} bxc4+ {[%emt 0:00:16]} 46. bxc4 {[%emt 0:00:01]} Nf6 {[%emt 0:00:46]} 47. a4 {[%emt 0:02:09]} Ne4 {[%emt 0:00:49]} 48. Ke3 {[%emt 0:00:49]} Nc3 {[%emt 0:00:31]} 49. g4+ {[%emt 0:03:44]} Ke6 {[%emt 0:00:31]} 50. a5 {[%emt 0:00:51]} Nd1+ {[%emt 0:00:49]} 51. Kf3 $18 {[%emt 0:01:33]} Nb2 {[%emt 0:01:20]} 52. Ke4 {[%emt 0:01:56]} g6 {[%emt 0:01:45]} 53. d5+ {[%emt 0:00:52]} Kf6 {[%emt 0:00:42]} 54. c5 {[%emt 0:02:48]} Na4 {[%emt 0:00:43]} 55. Kd4 {[%emt 0:01:32]} 1-0